Workbook

Sheet Introduction & Instructions
A1: FLIGHT DISTANCE EMISSIONS CALCULATOR
A3: PURPOSE | C3: HOW TO USE THIS WORKBOOK
A4: This Excel workbook is designed to help organisations quickly calculate the emissions associated with business flights. It takes an origin and a destination as inputs for each flight, as well as the class travelled and number of passengers, and automatically calculates the distance in kilometers between the origin and destination. The class is then used to determine the appropriate emissions factor to use from the 2024 DEFRA conversion factor database published by the UK Government, the de-facto standard database used worldwide for flight emission calculations. You can view the source of the emission factors by following the Factor Source Links in the Emission Factors sheet. The calculations in this workbook can be used to fulfil the reporting requirements for Scope 3 Category 6: Business Travel, under many reporting frameworks worldwide (AASB S2, IFRS S2, CA SB 253, CSRD). | C4: 1. Download your business flights data from your company's expense or travel management system, ensuring that the data includes origin and destination data. 2. Remove the example flights in the Flight Calculation Sheet workbook. 3. This workbook accepts origins and destinations in 2 forms: IATA codes (eg. SYD for Sydney Airport), or city names (eg. Sydney for Sydney Airport). City names will only match if there is a major international airport in the city. 4. Download class of travel from your systems too, if available. If it's not, choose Average as the value for class to use the average emission factor value. 5. If number of passengers per booking is available, make sure this is also included, as number of passengers is a required value. If you are unsure, or each row is a single passenger, just put 1 into the Num Passengers cell. 6. With origin, destination, class and number of passengers filled in, the workbook will automatically calculate the distance and associated emissions and output them in the output columns from Columns E-N. If it was unable to find a matching airport, an error will show. You can also optionally include a value in the Return? column to specify return flights in the calculation. 7. Use the Dashboard sheet to view emissions by class and top 10 routes by emissions. Make sure you refresh the pivot charts whenever you change any of the data in the workbook.
A20: CONTACT INFORMATION
A21: For assistance with this template or questions about compliance with the Australian Sustainability Reporting Standards, please contact: Avarni Pty Ltd Email: support@avarni.co Website: www.avarni.co

Sheet Flight Calculation Sheet
A1: FLIGHT CALCULATION SHEET
A3: Origin | B3: Destination | C3: Class | D3: Num Passengers | E3: Return? | F3: Origin Airport | G3: Destination Airport | H3: Origin Country | I3: Destination Country | J3: Route | K3: Origin Lat | L3: Origin Lon | M3: Destination Lat | N3: Destination Lon | O3: Distance (km) | P3: Emissions (kg CO2e) | Q3: Notes
A4: SYD | B4: MEL | C4: Economy | D4: 5 | E4: Return | F4: =_xlfn.XLOOKUP(Calculation[[#This Row],[Origin]], Airports[Lookup], Airports[Name], "NOT FOUND") -> Sydney Kingsford Smith International Airport | G4: =_xlfn.XLOOKUP(Calculation[[#This Row],[Destination]], Airports[Lookup], Airports[Name], "NOT FOUND") -> Melbourne International Airport | H4: =_xlfn.XLOOKUP(Calculation[[#This Row],[Origin]], Airports[Lookup], Airports[Country], "NOT FOUND") -> AU | I4: =_xlfn.XLOOKUP(Calculation[[#This Row],[Destination]], Airports[Lookup], Airports[Country], "NOT FOUND") -> AU | J4: =Calculation[[#This Row],[Origin]] & " → " & Calculation[[#This Row],[Destination]] & _xlfn.IFNA(" " & Calculation[[#This Row],[Return?]], "") -> SYD → MEL Return | K4: =_xlfn.XLOOKUP(Calculation[[#This Row],[Origin]], Airports[Lookup], Airports[Lat], "NOT FOUND") -> -33.94609833 | L4: =_xlfn.XLOOKUP(Calculation[[#This Row],[Origin]], Airports[Lookup], Airports[Lon], "NOT FOUND") -> 151.177002 | M4: =_xlfn.XLOOKUP(Calculation[[#This Row],[Destination]], Airports[Lookup], Airports[Lat], "NOT FOUND") -> -37.6733017 | N4: =_xlfn.XLOOKUP(Calculation[[#This Row],[Destination]], Airports[Lookup], Airports[Lon], "NOT FOUND") -> 144.8430023 | O4: =IFERROR(CALCULATE_DISTANCE(Calculation[[#This Row],[Origin Lat]], Calculation[[#This Row],[Origin Lon]], Calculation[[#This Row],[Destination Lat]], Calculation[[#This Row],[Destination Lon]]) * IF(Calculation[[#This Row],[Return?]] = "Return", 2, 1), "N/A") -> 1410.803367 | P4: =IFERROR(Calculation[[#This Row],[Distance (km)]]*Calculation[[#This Row],[Num Passengers]]*_xlfn.XLOOKUP(Calculation[[#This Row],[Class]], Factors[Class], Factors[Factor CO2e Value], "N/A"), "N/A") -> 949.823367
A5: Sydney | B5: Brisbane | C5: Premium Economy | D5: 2 | E5: Return | F5: =_xlfn.XLOOKUP(Calculation[[#This Row],[Origin]], Airports[Lookup], Airports[Name], "NOT FOUND") -> Sydney Kingsford Smith International Airport | G5: =_xlfn.XLOOKUP(Calculation[[#This Row],[Destination]], Airports[Lookup], Airports[Name], "NOT FOUND") -> Brisbane International Airport | H5: =_xlfn.XLOOKUP(Calculation[[#This Row],[Origin]], Airports[Lookup], Airports[Country], "NOT FOUND") -> AU | I5: =_xlfn.XLOOKUP(Calculation[[#This Row],[Destination]], Airports[Lookup], Airports[Country], "NOT FOUND") -> AU | J5: =Calculation[[#This Row],[Origin]] & " → " & Calculation[[#This Row],[Destination]] & _xlfn.IFNA(" " & Calculation[[#This Row],[Return?]], "") -> Sydney → Brisbane Return | K5: =_xlfn.XLOOKUP(Calculation[[#This Row],[Origin]], Airports[Lookup], Airports[Lat], "NOT FOUND") -> -33.94609833 | L5: =_xlfn.XLOOKUP(Calculation[[#This Row],[Origin]], Airports[Lookup], Airports[Lon], "NOT FOUND") -> 151.177002 | M5: =_xlfn.XLOOKUP(Calculation[[#This Row],[Destination]], Airports[Lookup], Airports[Lat], "NOT FOUND") -> -27.38419914 | N5: =_xlfn.XLOOKUP(Calculation[[#This Row],[Destination]], Airports[Lookup], Airports[Lon], "NOT FOUND") -> 153.1170044 | O5: =IFERROR(CALCULATE_DISTANCE(Calculation[[#This Row],[Origin Lat]], Calculation[[#This Row],[Origin Lon]], Calculation[[#This Row],[Destination Lat]], Calculation[[#This Row],[Destination Lon]]) * IF(Calculation[[#This Row],[Return?]] = "Return", 2, 1), "N/A") -> 1505.643561 | P5: =IFERROR(Calculation[[#This Row],[Distance (km)]]*Calculation[[#This Row],[Num Passengers]]*_xlfn.XLOOKUP(Calculation[[#This Row],[Class]], Factors[Class], Factors[Factor CO2e Value], "N/A"), "N/A") -> 648.691472
A6: MEL | B6: Auckland | C6: Average | D6: 1 | E6: One-Way | F6: =_xlfn.XLOOKUP(Calculation[[#This Row],[Origin]], Airports[Lookup], Airports[Name], "NOT FOUND") -> Melbourne International Airport | G6: =_xlfn.XLOOKUP(Calculation[[#This Row],[Destination]], Airports[Lookup], Airports[Name], "NOT FOUND") -> Auckland International Airport | H6: =_xlfn.XLOOKUP(Calculation[[#This Row],[Origin]], Airports[Lookup], Airports[Country], "NOT FOUND") -> AU | I6: =_xlfn.XLOOKUP(Calculation[[#This Row],[Destination]], Airports[Lookup], Airports[Country], "NOT FOUND") -> NZ | J6: =Calculation[[#This Row],[Origin]] & " → " & Calculation[[#This Row],[Destination]] & _xlfn.IFNA(" " & Calculation[[#This Row],[Return?]], "") -> MEL → Auckland One-Way | K6: =_xlfn.XLOOKUP(Calculation[[#This Row],[Origin]], Airports[Lookup], Airports[Lat], "NOT FOUND") -> -37.6733017 | L6: =_xlfn.XLOOKUP(Calculation[[#This Row],[Origin]], Airports[Lookup], Airports[Lon], "NOT FOUND") -> 144.8430023 | M6: =_xlfn.XLOOKUP(Calculation[[#This Row],[Destination]], Airports[Lookup], Airports[Lat], "NOT FOUND") -> -37.0080986 | N6: =_xlfn.XLOOKUP(Calculation[[#This Row],[Destination]], Airports[Lookup], Airports[Lon], "NOT FOUND") -> 174.7920074 | O6: =IFERROR(CALCULATE_DISTANCE(Calculation[[#This Row],[Origin Lat]], Calculation[[#This Row],[Origin Lon]], Calculation[[#This Row],[Destination Lat]], Calculation[[#This Row],[Destination Lon]]) * IF(Calculation[[#This Row],[Return?]] = "Return", 2, 1), "N/A") -> 2637.361016 | P6: =IFERROR(Calculation[[#This Row],[Distance (km)]]*Calculation[[#This Row],[Num Passengers]]*_xlfn.XLOOKUP(Calculation[[#This Row],[Class]], Factors[Class], Factors[Factor CO2e Value], "N/A"), "N/A") -> 463.6480666
A7: SYD | B7: LAX | C7: Business | D7: 1 | F7: =_xlfn.XLOOKUP(Calculation[[#This Row],[Origin]], Airports[Lookup], Airports[Name], "NOT FOUND") -> Sydney Kingsford Smith International Airport | G7: =_xlfn.XLOOKUP(Calculation[[#This Row],[Destination]], Airports[Lookup], Airports[Name], "NOT FOUND") -> Los Angeles International Airport | H7: =_xlfn.XLOOKUP(Calculation[[#This Row],[Origin]], Airports[Lookup], Airports[Country], "NOT FOUND") -> AU | I7: =_xlfn.XLOOKUP(Calculation[[#This Row],[Destination]], Airports[Lookup], Airports[Country], "NOT FOUND") -> US | J7: =Calculation[[#This Row],[Origin]] & " → " & Calculation[[#This Row],[Destination]] & _xlfn.IFNA(" " & Calculation[[#This Row],[Return?]], "") -> SYD → LAX | K7: =_xlfn.XLOOKUP(Calculation[[#This Row],[Origin]], Airports[Lookup], Airports[Lat], "NOT FOUND") -> -33.94609833 | L7: =_xlfn.XLOOKUP(Calculation[[#This Row],[Origin]], Airports[Lookup], Airports[Lon], "NOT FOUND") -> 151.177002 | M7: =_xlfn.XLOOKUP(Calculation[[#This Row],[Destination]], Airports[Lookup], Airports[Lat], "NOT FOUND") -> 33.94250107 | N7: =_xlfn.XLOOKUP(Calculation[[#This Row],[Destination]], Airports[Lookup], Airports[Lon], "NOT FOUND") -> -118.4079971 | O7: =IFERROR(CALCULATE_DISTANCE(Calculation[[#This Row],[Origin Lat]], Calculation[[#This Row],[Origin Lon]], Calculation[[#This Row],[Destination Lat]], Calculation[[#This Row],[Destination Lon]]) * IF(Calculation[[#This Row],[Return?]] = "Return", 2, 1), "N/A") -> 12061.12785 | P7: =IFERROR(Calculation[[#This Row],[Distance (km)]]*Calculation[[#This Row],[Num Passengers]]*_xlfn.XLOOKUP(Calculation[[#This Row],[Class]], Factors[Class], Factors[Factor CO2e Value], "N/A"), "N/A") -> 4709.146756
A8: BNE | B8: LHR | C8: Economy | D8: 5 | F8: =_xlfn.XLOOKUP(Calculation[[#This Row],[Origin]], Airports[Lookup], Airports[Name], "NOT FOUND") -> Brisbane International Airport | G8: =_xlfn.XLOOKUP(Calculation[[#This Row],[Destination]], Airports[Lookup], Airports[Name], "NOT FOUND") -> London Heathrow Airport | H8: =_xlfn.XLOOKUP(Calculation[[#This Row],[Origin]], Airports[Lookup], Airports[Country], "NOT FOUND") -> AU | I8: =_xlfn.XLOOKUP(Calculation[[#This Row],[Destination]], Airports[Lookup], Airports[Country], "NOT FOUND") -> GB | J8: =Calculation[[#This Row],[Origin]] & " → " & Calculation[[#This Row],[Destination]] & _xlfn.IFNA(" " & Calculation[[#This Row],[Return?]], "") -> BNE → LHR | K8: =_xlfn.XLOOKUP(Calculation[[#This Row],[Origin]], Airports[Lookup], Airports[Lat], "NOT FOUND") -> -27.38419914 | L8: =_xlfn.XLOOKUP(Calculation[[#This Row],[Origin]], Airports[Lookup], Airports[Lon], "NOT FOUND") -> 153.1170044 | M8: =_xlfn.XLOOKUP(Calculation[[#This Row],[Destination]], Airports[Lookup], Airports[Lat], "NOT FOUND") -> 51.47060013 | N8: =_xlfn.XLOOKUP(Calculation[[#This Row],[Destination]], Airports[Lookup], Airports[Lon], "NOT FOUND") -> -0.4619410038 | O8: =IFERROR(CALCULATE_DISTANCE(Calculation[[#This Row],[Origin Lat]], Calculation[[#This Row],[Origin Lon]], Calculation[[#This Row],[Destination Lat]], Calculation[[#This Row],[Destination Lon]]) * IF(Calculation[[#This Row],[Return?]] = "Return", 2, 1), "N/A") -> 16543.26209 | P8: =IFERROR(Calculation[[#This Row],[Distance (km)]]*Calculation[[#This Row],[Num Passengers]]*_xlfn.XLOOKUP(Calculation[[#This Row],[Class]], Factors[Class], Factors[Factor CO2e Value], "N/A"), "N/A") -> 11137.75121
A9: SYD | B9: MEL | C9: Premium Economy | D9: 3 | F9: =_xlfn.XLOOKUP(Calculation[[#This Row],[Origin]], Airports[Lookup], Airports[Name], "NOT FOUND") -> Sydney Kingsford Smith International Airport | G9: =_xlfn.XLOOKUP(Calculation[[#This Row],[Destination]], Airports[Lookup], Airports[Name], "NOT FOUND") -> Melbourne International Airport | H9: =_xlfn.XLOOKUP(Calculation[[#This Row],[Origin]], Airports[Lookup], Airports[Country], "NOT FOUND") -> AU | I9: =_xlfn.XLOOKUP(Calculation[[#This Row],[Destination]], Airports[Lookup], Airports[Country], "NOT FOUND") -> AU | J9: =Calculation[[#This Row],[Origin]] & " → " & Calculation[[#This Row],[Destination]] & _xlfn.IFNA(" " & Calculation[[#This Row],[Return?]], "") -> SYD → MEL | K9: =_xlfn.XLOOKUP(Calculation[[#This Row],[Origin]], Airports[Lookup], Airports[Lat], "NOT FOUND") -> -33.94609833 | L9: =_xlfn.XLOOKUP(Calculation[[#This Row],[Origin]], Airports[Lookup], Airports[Lon], "NOT FOUND") -> 151.177002 | M9: =_xlfn.XLOOKUP(Calculation[[#This Row],[Destination]], Airports[Lookup], Airports[Lat], "NOT FOUND") -> -37.6733017 | N9: =_xlfn.XLOOKUP(Calculation[[#This Row],[Destination]], Airports[Lookup], Airports[Lon], "NOT FOUND") -> 144.8430023 | O9: =IFERROR(CALCULATE_DISTANCE(Calculation[[#This Row],[Origin Lat]], Calculation[[#This Row],[Origin Lon]], Calculation[[#This Row],[Destination Lat]], Calculation[[#This Row],[Destination Lon]]) * IF(Calculation[[#This Row],[Return?]] = "Return", 2, 1), "N/A") -> 705.4016836 | P9: =IFERROR(Calculation[[#This Row],[Distance (km)]]*Calculation[[#This Row],[Num Passengers]]*_xlfn.XLOOKUP(Calculation[[#This Row],[Class]], Factors[Class], Factors[Factor CO2e Value], "N/A"), "N/A") -> 455.8728921
A10: Auckland | B10: Singapore | C10: Average | D10: 1 | F10: =_xlfn.XLOOKUP(Calculation[[#This Row],[Origin]], Airports[Lookup], Airports[Name], "NOT FOUND") -> Auckland International Airport | G10: =_xlfn.XLOOKUP(Calculation[[#This Row],[Destination]], Airports[Lookup], Airports[Name], "NOT FOUND") -> Singapore Changi International Airport | H10: =_xlfn.XLOOKUP(Calculation[[#This Row],[Origin]], Airports[Lookup], Airports[Country], "NOT FOUND") -> NZ | I10: =_xlfn.XLOOKUP(Calculation[[#This Row],[Destination]], Airports[Lookup], Airports[Country], "NOT FOUND") -> SG | J10: =Calculation[[#This Row],[Origin]] & " → " & Calculation[[#This Row],[Destination]] & _xlfn.IFNA(" " & Calculation[[#This Row],[Return?]], "") -> Auckland → Singapore | K10: =_xlfn.XLOOKUP(Calculation[[#This Row],[Origin]], Airports[Lookup], Airports[Lat], "NOT FOUND") -> -37.0080986 | L10: =_xlfn.XLOOKUP(Calculation[[#This Row],[Origin]], Airports[Lookup], Airports[Lon], "NOT FOUND") -> 174.7920074 | M10: =_xlfn.XLOOKUP(Calculation[[#This Row],[Destination]], Airports[Lookup], Airports[Lat], "NOT FOUND") -> 1.350190043 | N10: =_xlfn.XLOOKUP(Calculation[[#This Row],[Destination]], Airports[Lookup], Airports[Lon], "NOT FOUND") -> 103.9940033 | O10: =IFERROR(CALCULATE_DISTANCE(Calculation[[#This Row],[Origin Lat]], Calculation[[#This Row],[Origin Lon]], Calculation[[#This Row],[Destination Lat]], Calculation[[#This Row],[Destination Lon]]) * IF(Calculation[[#This Row],[Return?]] = "Return", 2, 1), "N/A") -> 8408.330792 | P10: =IFERROR(Calculation[[#This Row],[Distance (km)]]*Calculation[[#This Row],[Num Passengers]]*_xlfn.XLOOKUP(Calculation[[#This Row],[Class]], Factors[Class], Factors[Factor CO2e Value], "N/A"), "N/A") -> 1478.184553

Sheet Dashboard
A1: DASHBOARD
A3: Class | B3: Sum of Emissions (kg CO2e)
A4: Average | B4: 1941.83262
A5: Business | B5: 4709.146756
A6: Economy | B6: 12087.57457
A7: Premium Economy | B7: 1104.564364
A8: Grand Total | B8: 19843.11831
A36: Route | B36: Sum of Emissions (kg CO2e)
A37: BNE → LHR | B37: 11137.75121
A38: SYD → LAX | B38: 4709.146756
A39: Auckland → Singapore | B39: 1478.184553
A40: SYD → MEL Return | B40: 949.823367
A41: Sydney → Brisbane Return | B41: 648.691472
A42: MEL → Auckland One-Way | B42: 463.6480666
A43: SYD → MEL | B43: 455.8728921
A44: Grand Total | B44: 19843.11831

Sheet Emission Factors
A1: EMISSION FACTORS
A3: Class | B3: Factor Name | C3: Factor CO2e Value | D3: Factor Unit | E3: Factor Source Name | F3: Factor Source Link
A4: Economy | B4: International, to/from non-UK, Economy class, With RF | C4: 0.13465 | D4: passenger-km | E4: DEFRA | F4: https://www.gov.uk/government/publications/greenhouse-gas-reporting-conversion-factors-2024
A5: Premium Economy | B5: International, to/from non-UK, Premium economy class, With RF | C5: 0.21542 | D5: passenger-km | E5: DEFRA | F5: https://www.gov.uk/government/publications/greenhouse-gas-reporting-conversion-factors-2024
A6: Business | B6: International, to/from non-UK, Business class, With RF | C6: 0.39044 | D6: passenger-km | E6: DEFRA | F6: https://www.gov.uk/government/publications/greenhouse-gas-reporting-conversion-factors-2024
A7: First | B7: International, to/from non-UK, First class, With RF | C7: 0.53854 | D7: passenger-km | E7: DEFRA | F7: https://www.gov.uk/government/publications/greenhouse-gas-reporting-conversion-factors-2024
A8: Average | B8: International, to/from non-UK, Average passenger, With RF | C8: 0.1758 | D8: passenger-km | E8: DEFRA | F8: https://www.gov.uk/government/publications/greenhouse-gas-reporting-conversion-factors-2024

Sheet Lists (hidden)
A1: Return?
A2: One-Way
A3: Return

Sheet Airports (hidden)
A1: Lookup | B1: Name | C1: Country | D1: Lat | E1: Lon
A2: NYS | B2: New York Skyports Seaplane Base | C2: US | D2: 40.73399083 | E2: -73.97291638
A3: ICY | B3: Icy Bay Airport | C3: US | D3: 59.96900177 | E3: -141.6620026
A4: HGZ | B4: Hog River Airport | C4: US | D4: 66.2161026 | E4: -155.6690063
A5: BYW | B5: Blakely Island Airport | C5: US | D5: 48.57899857 | E5: -122.8259964
A6: BDF | B6: Rinkenberger Restricted Landing Area | C6: US | D6: 41.23089981 | E6: -89.61569977
A7: BCS | B7: Southern Seaplane Airport | C7: US | D7: 29.86610031 | E7: -90.02220154
A8: BWL | B8: Blackwell Tonkawa Municipal Airport | C8: US | D8: 36.74509811 | E8: -97.34960175
A9: DUF | B9: Pine Island Airport | C9: US | D9: 36.25350189 | E9: -75.78849792
A10: FOB | B10: Fort Bragg Airport | C10: US | D10: 39.47430038 | E10: -123.7959976
A11: AFT | B11: Afutara Aerodrome | C11: SB | D11: -9.191388889 | E11: 160.9486111
A12: RNA | B12: Ulawa Airport | C12: SB | D12: -9.860543583 | E12: 161.9795465
A13: ATD | B13: Uru Harbour Airport | C13: SB | D13: -8.873330116 | E13: 161.0110016
A14: VEV | B14: Barakoma Airport | C14: SB | D14: -7.912779808 | E14: 156.7059937
A15: BPF | B15: Batuna Aerodrome | C15: SB | D15: -8.562027778 | E15: 158.1193056
A16: GEF | B16: Geva Airport | C16: SB | D16: -7.575829983 | E16: 156.5970001
A17: AKS | B17: Auki Airport | C17: SB | D17: -8.702569962 | E17: 160.6820068
A18: BNY | B18: Bellona/Anua Airport | C18: SB | D18: -11.30222222 | E18: 159.7983333
A19: CHY | B19: Choiseul Bay Airport | C19: SB | D19: -6.711944 | E19: 156.396111
A20: BAS | B20: Ballalae Airport | C20: SB | D20: -6.990745 | E20: 155.886656
A21: FRE | B21: Fera/Maringe Airport | C21: SB | D21: -8.107500076 | E21: 159.5769958
A22: HIR | B22: Honiara International Airport | C22: SB | D22: -9.42800045 | E22: 160.0549927
A23: MBU | B23: Babanakira Airport | C23: SB | D23: -9.74750042 | E23: 159.8390045
A24: AVU | B24: Avu Avu Airport | C24: SB | D24: -9.868333333 | E24: 160.4105556
A25: IRA | B25: Ngorangora Airport | C25: SB | D25: -10.44970036 | E25: 161.897995
A26: SCZ | B26: Santa Cruz/Graciosa Bay/Luova Airport | C26: SB | D26: -10.72029972 | E26: 165.7949982
A27: MUA | B27: Munda Airport | C27: SB | D27: -8.327969551 | E27: 157.2630005
A28: GZO | B28: Nusatupe Airport | C28: SB | D28: -8.097780228 | E28: 156.8639984
A29: MNY | B29: Mono Airport | C29: SB | D29: -7.416940212 | E29: 155.5650024
A30: PRS | B30: Parasi Airport | C30: SB | D30: -9.641670227 | E30: 161.4250031
A31: RNL | B31: Rennell/Tingoa Airport | C31: SB | D31: -11.53390026 | E31: 160.0630035
A32: EGM | B32: Sege Airport | C32: SB | D32: -8.578889847 | E32: 157.8760071
A33: NNB | B33: Santa Ana Airport | C33: SB | D33: -10.847994 | E33: 162.454108
A34: RUS | B34: Marau Airport | C34: SB | D34: -9.86166954 | E34: 160.8249969
A35: VAO | B35: Suavanao Airport | C35: SB | D35: -7.585559845 | E35: 158.7310028
A36: XYA | B36: Yandina Airport | C36: SB | D36: -9.092816 | E36: 159.21841
A37: KGE | B37: Kagau Island Airport | C37: SB | D37: -7.333000183 | E37: 157.5829926
A38: KWS | B38: Kwailabesi Airport | C38: SB | D38: -8.360508 | E38: 160.775127
A39: GTA | B39: Gatokae Airport | C39: SB | D39: -8.739167 | E39: 158.203056
A40: RIN | B40: Ringi Cove Airport | C40: SB | D40: -8.126390457 | E40: 157.1430054
A41: RBV | B41: Ramata Airport | C41: SB | D41: -8.168060303 | E41: 157.6430054
A42: CEX | B42: Chena Hot Springs Airport | C42: US | D42: 65.05180359 | E42: -146.0469971
A43: HED | B43: Herendeen Bay Airport | C43: US | D43: 55.80139923 | E43: -160.8990021
A44: TWE | B44: Taylor Airport | C44: US | D44: 65.6792984 | E44: -164.798996
A45: CDL | B45: Candle 2 Airport | C45: US | D45: 65.90769959 | E45: -161.9259949
A46: BSZ | B46: Bartletts Airport | C46: US | D46: 58.21620178 | E46: -157.352005
A47: BSW | B47: Boswell Bay Airport | C47: US | D47: 60.42309952 | E47: -146.1459961
A48: INU | B48: Nauru International Airport | C48: NR | D48: -0.547458 | E48: 166.919006
A49: ATP | B49: Aitape Airport | C49: PG | D49: -3.143611111 | E49: 142.3468056
A50: AMU | B50: Amanab Airport | C50: PG | D50: -3.586 | E50: 141.2143333
A51: ADC | B51: Andakombe Airport | C51: PG | D51: -7.137222222 | E51: 145.7447222
A52: AIE | B52: Aiome Airport | C52: PG | D52: -5.145699978 | E52: 144.7307003
A53: KPM | B53: Kompiam Airport | C53: PG | D53: -5.381666667 | E53: 143.9247222
A54: AUJ | B54: Ambunti Airport | C54: PG | D54: -4.215666667 | E54: 142.8231667
A55: AWB | B55: Awaba Airport | C55: PG | D55: -8.006110191 | E55: 142.7483521
A56: AYU | B56: Aiyura Airport | C56: PG | D56: -6.338055556 | E56: 145.9041667
A57: VMU | B57: Baimuru Airport | C57: PG | D57: -7.496860027 | E57: 144.8199005
A58: BDZ | B58: Baindoung Airport | C58: PG | D58: -6.347222222 | E58: 146.9422222
A59: BUA | B59: Buka Airport | C59: PG | D59: -5.422319889 | E59: 154.6730042
A60: OPU | B60: Balimo Airport | C60: PG | D60: -8.050000191 | E60: 142.9329987
A61: BUL | B61: Bulolo Airport | C61: PG | D61: -7.216286671 | E61: 146.6495419
A62: CMU | B62: Chimbu Airport | C62: PG | D62: -6.024290085 | E62: 144.970993
A63: DER | B63: Derim Airport | C63: PG | D63: -6.144722222 | E63: 147.1072222
A64: DAU | B64: Daru Airport | C64: PG | D64: -9.086759567 | E64: 143.2079926
A65: XYR | B65: Edwaki Airport | C65: PG | D65: -3.883986 | E65: 141.792234
A66: FNE | B66: Fane Airport | C66: PG | D66: -8.549277778 | E66: 147.0858333
A67: FIN | B67: Finschhafen Airport | C67: PG | D67: -6.621750109 | E67: 147.85405
A68: FAQ | B68: Frieda River Airport | C68: PG | D68: -4.610468 | E68: 141.960138
A69: GKA | B69: Goroka Airport | C69: PG | D69: -6.081689835 | E69: 145.3919983
A70: GRL | B70: Garasa Airport | C70: PG | D70: -7.980713 | E70: 147.213461
A71: GAR | B71: Garaina Airport | C71: PG | D71: -7.875625027 | E71: 147.1412659
A72: GUR | B72: Gurney Airport | C72: PG | D72: -10.3114996 | E72: 150.3339996
A73: GAP | B73: Gusap Airport | C73: PG | D73: -6.053196 | E73: 145.959047
A74: PNP | B74: Girua Airport | C74: PG | D74: -8.80453968 | E74: 148.3090057
A75: GMI | B75: Gasmata Island Airport | C75: PG | D75: -6.271110058 | E75: 150.3309937
A76: GVI | B76: Green River Airport | C76: PG | D76: -3.902242899 | E76: 141.170517
A77: HKN | B77: Kimbe Airport | C77: PG | D77: -5.462170124 | E77: 150.4049988
A78: KIE | B78: Aropa Airport | C78: PG | D78: -6.305 | E78: 155.727778
A79: LSA | B79: Losuia Airport | C79: PG | D79: -8.505820274 | E79: 151.0809937
A80: KBM | B80: Kabwum | C80: PG | D80: -6.155472222 | E80: 147.1914722
A81: KDR | B81: Kandrian Airport | C81: PG | D81: -6.2659 | E81: 149.5581
A82: UNG | B82: Kiunga Airport | C82: PG | D82: -6.12571001 | E82: 141.2819977
A83: KRI | B83: Kikori Airport | C83: PG | D83: -7.424379826 | E83: 144.2500763
A84: KMA | B84: Kerema Airport | C84: PG | D84: -7.963610172 | E84: 145.7709961
A85: KKD | B85: Kokoda Airport | C85: PG | D85: -8.884678841 | E85: 147.730957
A86: KZF | B86: Kaintiba Airport | C86: PG | D86: -7.50025 | E86: 146.0338333
A87: KUQ | B87: Kuri Airport | C87: PG | D87: -7.135083 | E87: 143.276111
A88: KVG | B88: Kavieng Airport | C88: PG | D88: -2.579400063 | E88: 150.8079987
A89: KWO | B89: Kawito Airport | C89: PG | D89: -7.977006912 | E89: 142.8235779
A90: LNV | B90: Londolovit Airport | C90: PG | D90: -3.043610096 | E90: 152.6289978
A91: LMY | B91: Lake Murray Airport | C91: PG | D91: -7.00992012 | E91: 141.4940033
A92: LMI | B92: Lumi Airport | C92: PG | D92: -3.476839511 | E92: 142.0412922
A93: MYX | B93: Menyamya Airport | C93: PG | D93: -7.211666667 | E93: 146.0193611
A94: MAG | B94: Madang Airport | C94: PG | D94: -5.207079887 | E94: 145.7890015
A95: HGU | B95: Mount Hagen Kagamuga Airport | C95: PG | D95: -5.826789856 | E95: 144.2960052
A96: MXK | B96: Mindik Airport | C96: PG | D96: -6.471666667 | E96: 147.4411389
A97: GUV | B97: Mougulu Airport | C97: PG | D97: -6.280859 | E97: 142.420775
A98: MDU | B98: Mendi Airport | C98: PG | D98: -6.147739887 | E98: 143.6569977
A99: MAS | B99: Momote Airport | C99: PG | D99: -2.061889887 | E99: 147.423996
A100: MXH | B100: Moro Airport | C100: PG | D100: -6.363329887 | E100: 143.2380066
A101: MIS | B101: Misima Island Airport | C101: PG | D101: -10.6892004 | E101: 152.8379974
A102: GBF | B102: Negarbo(Negabo) Airport | C102: PG | D102: -6.567778 | E102: 144.703058
A103: MFO | B103: Manguna Airport | C103: PG | D103: -5.577778 | E103: 151.792333
A104: UKU | B104: Nuku Airport | C104: PG | D104: -3.676651 | E104: 142.484334
A105: LAE | B105: Lae Nadzab Airport | C105: PG | D105: -6.569829941 | E105: 146.7259979
A106: OGE | B106: Ogeranang Airport | C106: PG | D106: -6.46675 | E106: 147.3641667
A107: OSE | B107: Omora Airport | C107: PG | D107: -7.827777778 | E107: 147.0806389
A108: PDI | B108: Pindiu Airport | C108: PG | D108: -6.445138889 | E108: 147.5158333
A109: POM | B109: Port Moresby Jacksons International Airport | C109: PG | D109: -9.443380356 | E109: 147.2200012
A110: KRJ | B110: Karawari Airstrip | C110: PG | D110: -4.596666667 | E110: 143.5225
A111: RMN | B111: Rumginae Airport | C111: PG | D111: -5.897222222 | E111: 141.2716667
A112: KMR | B112: Karimui Airport | C112: PG | D112: -6.4921 | E112: 144.823
A113: SBE | B113: Suabi Airport | C113: PG | D113: -6.104444444 | E113: 142.2783333
A114: NIS | B114: Simberi Airport | C114: PG | D114: -2.662222222 | E114: 151.9977778
A115: SIL | B115: Sila Airport | C115: PG | D115: -9.073555556 | E115: 148.38925
A116: SIM | B116: Simbai Airport | C116: PG | D116: -5.278611111 | E116: 144.5447222
A117: SKC | B117: Suki Airport | C117: PG | D117: -8.0466 | E117: 141.7222
A118: TIZ | B118: Tari Airport | C118: PG | D118: -5.84499979 | E118: 142.947998
A119: TBG | B119: Tabubil Airport | C119: PG | D119: -5.278610229 | E119: 141.2259979
A120: TFM | B120: Telefomin Airport | C120: PG | D120: -5.126080464 | E120: 141.641922
A121: TPI | B121: Tapini Airport | C121: PG | D121: -8.356666667 | E121: 146.9891667
A122: TAJ | B122: Tadji Airport | C122: PG | D122: -3.198191803 | E122: 142.4309635
A123: RAB | B123: Tokua Airport | C123: PG | D123: -4.340459824 | E123: 152.3800049
A124: TKW | B124: Tekin Airport | C124: PG | D124: -5.243666667 | E124: 142.1651944
A125: TFI | B125: Tufi Airport | C125: PG | D125: -9.075954437 | E125: 149.3198395
A126: VAI | B126: Vanimo Airport | C126: PG | D126: -2.697170019 | E126: 141.302002
A127: WAO | B127: Wabo Airport | C127: PG | D127: -6.989444444 | E127: 145.0751111
A128: WBM | B128: Wapenamanda Airport | C128: PG | D128: -5.643300057 | E128: 143.8950043
A129: AGL | B129: Wanigela Airport | C129: PG | D129: -9.3375 | E129: 149.1555556
A130: WWK | B130: Wewak International Airport | C130: PG | D130: -3.583830118 | E130: 143.6690063
A131: WOA | B131: Wonenara Airport | C131: PG | D131: -6.796861111 | E131: 145.8919444
A132: WSU | B132: Wasu Airport | C132: PG | D132: -5.961709449 | E132: 147.1982253
A133: WTP | B133: Woitape Airport | C133: PG | D133: -8.545833333 | E133: 147.2525
A134: WUG | B134: Wau Airport | C134: PG | D134: -7.345555556 | E134: 146.7186111
A135: JEG | B135: Aasiaat Airport | C135: GL | D135: 68.72180176 | E135: -52.78469849
A136: UAK | B136: Narsarsuaq Airport | C136: GL | D136: 61.16049957 | E136: -45.42599869
A137: CNP | B137: Neerlerit Inaat Airport | C137: GL | D137: 70.74310303 | E137: -22.65049934
A138: GOH | B138: Godthaab / Nuuk Airport | C138: GL | D138: 64.19090271 | E138: -51.67810059
A139: JAV | B139: Ilulissat Airport | C139: GL | D139: 69.24320221 | E139: -51.05709839
A140: KUS | B140: Kulusuk Airport | C140: GL | D140: 65.57360077 | E140: -37.12360001
A141: JSU | B141: Maniitsoq Airport | C141: GL | D141: 65.41249847 | E141: -52.93939972
A142: JFR | B142: Paamiut Airport | C142: GL | D142: 62.01473618 | E142: -49.67093658
A143: NAQ | B143: Qaanaaq Airport | C143: GL | D143: 77.48860168 | E143: -69.38870239
A144: SFJ | B144: Kangerlussuaq Airport | C144: GL | D144: 67.0122219 | E144: -50.71160316
A145: JHS | B145: Sisimiut Airport | C145: GL | D145: 66.95130157 | E145: -53.72930145
A146: THU | B146: Thule Air Base | C146: GL | D146: 76.53119659 | E146: -68.70320129
A147: JUV | B147: Upernavik Airport | C147: GL | D147: 72.79019928 | E147: -56.13059998
A148: JQA | B148: Qaarsut Airport | C148: GL | D148: 70.73419952 | E148: -52.69620132
A149: AEY | B149: Akureyri Airport | C149: IS | D149: 65.66000366 | E149: -18.0727005
A150: BIU | B150: Bildudalur Airport | C150: IS | D150: 65.64129639 | E150: -23.5461998
A151: BGJ | B151: Borgarfjordur eystri Airport | C151: IS | D151: 65.5164032 | E151: -13.80500031
A152: BJD | B152: Bakkafjordur Airport | C152: IS | D152: 66.02189636 | E152: -14.82439995
A153: BLO | B153: Hjaltabakki Airport | C153: IS | D153: 65.64499664 | E153: -20.28750038
A154: BQD | B154: Budardalur Airport | C154: IS | D154: 65.07530212 | E154: -21.8003006
A155: BXV | B155: Breiddalsvik Airport | C155: IS | D155: 64.79000092 | E155: -14.02280045
A156: DJU | B156: Djupivogur Airport | C156: IS | D156: 64.64420319 | E156: -14.28279972
A157: EGS | B157: Egilsstadir Airport | C157: IS | D157: 65.28330231 | E157: -14.40139961
A158: FAS | B158: Faskrudsfjordur Airport | C158: IS | D158: 64.93170166 | E158: -14.06060028
A159: FAG | B159: Fagurholsmyri Airport | C159: IS | D159: 63.87469864 | E159: -16.64109993
A160: GUU | B160: Grundarfjordur Airport | C160: IS | D160: 64.99140167 | E160: -23.22470093
A161: GJR | B161: Gjogur Airport | C161: IS | D161: 65.99530029 | E161: -21.32690048
A162: GRY | B162: Grimsey Airport | C162: IS | D162: 66.5458 | E162: -18.0173
A163: HVK | B163: Holmavik Airport | C163: IS | D163: 65.70469666 | E163: -21.69639969
A164: HFN | B164: Hornafjordur Airport | C164: IS | D164: 64.29560089 | E164: -15.22719955
A165: FLI | B165: Holt Airport | C165: IS | D165: 66.01418043 | E165: -23.4416914
A166: HZK | B166: Husavik Airport | C166: IS | D166: 65.95230103 | E166: -17.4260006
A167: HVM | B167: Krokstadarmelar Airport | C167: IS | D167: 65.2664032 | E167: -20.84690094
A168: HLO | B168: Ingjaldssandur Airport | C168: IS | D168: 66.05000305 | E168: -23.69610023
A169: IFJ | B169: Isafjordur Airport | C169: IS | D169: 66.05809784 | E169: -23.13529968
A170: KEF | B170: Keflavik International Airport | C170: IS | D170: 63.98500061 | E170: -22.60560036
A171: OPA | B171: Kopasker Airport | C171: IS | D171: 66.31079865 | E171: -16.4666996
A172: SAK | B172: Saudarkrokur Airport | C172: IS | D172: 65.73169708 | E172: -19.57279968
A173: NOR | B173: Nordfjordur Airport | C173: IS | D173: 65.13189697 | E173: -13.74639988
A174: OFJ | B174: Olafsfjordur Airport | C174: IS | D174: 66.08329773 | E174: -18.66670036
A175: PFJ | B175: Patreksfjordur Airport | C175: IS | D175: 65.55580139 | E175: -23.96500015
A176: RHA | B176: Reykholar Airport | C176: IS | D176: 65.45262909 | E176: -22.20611572
A177: OLI | B177: Rif Airport | C177: IS | D177: 64.91139984 | E177: -23.82309914
A178: RFN | B178: Raufarhofn Airport | C178: IS | D178: 66.40640259 | E178: -15.91829968
A179: RKV | B179: Reykjavik Airport | C179: IS | D179: 64.12999725 | E179: -21.94059944
A180: MVA | B180: Reykjahlid Airport | C180: IS | D180: 65.65579987 | E180: -16.91810036
A181: SIJ | B181: Siglufjordur Airport | C181: IS | D181: 66.13330078 | E181: -18.91670036
A182: SYK | B182: Stykkisholmur Airport | C182: IS | D182: 65.05809784 | E182: -22.7942009
A183: TEY | B183: Tingeyri Airport | C183: IS | D183: 65.87030029 | E183: -23.55999947
A184: THO | B184: Thorshofn Airport | C184: IS | D184: 66.21849823 | E184: -15.3355999
A185: VEY | B185: Vestmannaeyjar Airport | C185: IS | D185: 63.42430115 | E185: -20.27890015
A186: VPN | B186: Vopnafjordur Airport | C186: IS | D186: 65.72059631 | E186: -14.85060024
A187: PRN | B187: Pristina International Airport | C187: KS | D187: 42.57279968 | E187: 21.03580093
A188: YZZ | B188: Trail Airport | C188: CA | D188: 49.05559921 | E188: -117.6090012
A189: YAA | B189: Anahim Lake Airport | C189: CA | D189: 52.45249939 | E189: -125.3030014
A190: DGF | B190: Douglas Lake Airport | C190: CA | D190: 50.16546005 | E190: -120.1712734
A191: JHL | B191: Fort MacKay/Albian Aerodrome | C191: CA | D191: 57.22389984 | E191: -111.4189987
A192: DUQ | B192: Duncan Airport | C192: CA | D192: 48.75453362 | E192: -123.7097025
A193: ZEL | B193: Denny Island Airport | C193: CA | D193: 52.13970184 | E193: -128.0639954
A194: YBO | B194: Bob Quinn Lake Airport | C194: CA | D194: 56.96670151 | E194: -130.25
A195: YWM | B195: Williams Harbour Airport | C195: CA | D195: 52.56689835 | E195: -55.78469849
A196: YSO | B196: Postville Airport | C196: CA | D196: 54.91059875 | E196: -59.7867012
A197: YBI | B197: Black Tickle Airport | C197: CA | D197: 53.4693985 | E197: -55.78499985
A198: YFX | B198: St. Lewis (Fox Harbour) Airport | C198: CA | D198: 52.37279892 | E198: -55.6739006
A199: YHA | B199: Port Hope Simpson Airport | C199: CA | D199: 52.52809906 | E199: -56.28609848
A200: YRG | B200: Rigolet Airport | C200: CA | D200: 54.17969894 | E200: -58.45750046
... 8536 more rows
